{"text_format":"3","workbook":"xlsx","n_sheets":2,"sheets":["Начало","Праздничный бюджет"],"not_rendered":{"defined_names":1},"read":"whole","date_system":"1900"}

{"sheet":"Начало","index":0,"n_rows":7,"n_cols":2,"rows_kept":7}
[null,"ОБ ЭТОМ ШАБЛОНЕ"]
[null,"Следите за своими расходами с помощью этого Планировщик праздничного бюджета."]
[null,"Введите Выделенные и Фактические расходы по позициям, указанным в таблицах."]
[null,"Праздничный бюджет, общая фактическая потраченная сумма и Разница рассчитываются автоматически."]
[null,"Примечание "]
[null,"В столбце A листа ПЛАНИРОВЩИК ПРАЗДНИЧНОГО БЮДЖЕТА содержатся дополнительные инструкции. Их текст намерено скрыт. Чтобы удалить этот текст, выделите столбец A и нажмите клавишу DELETE. Чтобы отобразить текст, выделите столбец A и измените цвет шрифта."]
[null,"Чтобы получить дополнительные сведения о конкретной таблице, щелкните в ней ячейку, нажмите клавиши SHIFT+F10 и выберите пункт «Таблица», а затем — «Замещающий текст»."]

{"sheet":"Праздничный бюджет","index":1,"n_rows":32,"n_cols":12,"rows_kept":32,"merged":[[1,1,5,4],[2,8,2,9],[3,8,3,9],[4,8,4,9],[6,1,6,4],[6,8,6,11],[15,1,15,4],[15,8,15,11],[25,1,25,4],[25,8,25,11]]}
["Введите Выделенные и Фактические расходы для каждой категории в соответствующих таблицах на этом листе. В ячейках этого столбца содержатся полезные инструкции о том, как использовать этот лист. Нажмите СТРЕЛКУ ВНИЗ, чтобы начать. "]
["Ячейка справа содержит название листа.","Планировщик праздничного бюджета"]
["Праздничный бюджет автоматически рассчитывается в ячейке K3.",{"$nulls":7},"ПРАЗДНИЧНЫЙ БЮДЖЕТ",null,{"$f":"SUM(Подарки[Выделенные],Упаковка[Выделенные],(Поездки[Выделенные],(Застолья[Выделенные],(Развлечения[Выделенные],Прочее[Выделенные]))))","v":{"v":750,"d":"750.00 ₽"}}]
["Фактические расходы автоматически рассчитываются в ячейке K4.",{"$nulls":7},"ФАКТИЧЕСКИЕ РАСХОДЫ",null,{"$f":"SUM((Подарки[Фактические],(Упаковка[Фактические],(Поездки[Фактические],(Застолья[Фактические],(Развлечения[Фактические],(Прочее[Фактические])))))))","v":{"v":820,"d":"820.00 ₽"}}]
["Разница автоматически рассчитывается в ячейке K5. Дальнейшие инструкции указаны в ячейке A7.",{"$nulls":7},"РАЗНИЦА (отклонение от бюджета)",null,{"$f":"SUM(K3-K4)","v":{"v":-70,"d":"-70.00 ₽"}}]
[]
["Надпись «Подарки» находится в ячейке справа, а надпись «Праздничные застолья» — в ячейке I7.","Подарки",{"$nulls":6},"Праздничные застолья"]
["Введите расходы на Подарки в таблице, начиная с ячейки справа, и расходы на Застолья в таблице, начиная с ячейки I8. Дальнейшие инструкции указаны в ячейке A16.","Позиция","Выделенные","Фактические","Разница",{"$nulls":3},"Позиция","Выделенные","Фактические","Разница"]
[null,"Семья",{"v":500,"d":"500.00 ₽"},{"v":495,"d":"495.00 ₽"},{"$f":"Подарки[[#This Row],[Выделенные]]-Подарки[[#This Row],[Фактические]]","v":{"v":5,"d":"5.00 ₽"}},{"$nulls":3},"Продовольственные товары",null,null,{"$f":"Застолья[[#This Row],[Выделенные]]-Застолья[[#This Row],[Фактические]]","v":{"v":0,"d":"0.00 ₽"}}]
[null,"Друзья",{"v":250,"d":"250.00 ₽"},{"v":325,"d":"325.00 ₽"},{"$f":"Подарки[[#This Row],[Выделенные]]-Подарки[[#This Row],[Фактические]]","v":{"v":-75,"d":"-75.00 ₽"}},{"$nulls":3},"Алкогольные напитки",null,null,{"$f":"Застолья[[#This Row],[Выделенные]]-Застолья[[#This Row],[Фактические]]","v":{"v":0,"d":"0.00 ₽"}}]
[null,"Коллеги",null,null,{"$f":"Подарки[[#This Row],[Выделенные]]-Подарки[[#This Row],[Фактические]]","v":{"v":0,"d":"0.00 ₽"}},{"$nulls":3},"Оформление",null,null,{"$f":"Застолья[[#This Row],[Выделенные]]-Застолья[[#This Row],[Фактические]]","v":{"v":0,"d":"0.00 ₽"}}]
[null,"Преподаватели, воспитатели, няни и т. д.",null,null,{"$f":"Подарки[[#This Row],[Выделенные]]-Подарки[[#This Row],[Фактические]]","v":{"v":0,"d":"0.00 ₽"}},{"$nulls":3},"Другое (нажмите клавишу TAB в последнем столбце этой строки, чтобы добавить строку)",null,null,{"$f":"Застолья[[#This Row],[Выделенные]]-Застолья[[#This Row],[Фактические]]","v":{"v":0,"d":"0.00 ₽"}}]
[null,"Благотворительные пожертвования",null,null,{"$f":"Подарки[[#This Row],[Выделенные]]-Подарки[[#This Row],[Фактические]]","v":{"v":0,"d":"0.00 ₽"}},{"$nulls":3},"Итог",{"$f":"SUBTOTAL(109,Застолья[Выделенные])","v":{"v":0,"d":"0.00 ₽"}},{"$f":"SUBTOTAL(109,Застолья[Фактические])","v":{"v":0,"d":"0.00 ₽"}},{"$f":"SUBTOTAL(109,Застолья[Разница])","v":{"v":0,"d":"0.00 ₽"}}]
[null,"Другое (нажмите клавишу TAB в последнем столбце этой строки, чтобы добавить строку)",null,null,{"$f":"Подарки[[#This Row],[Выделенные]]-Подарки[[#This Row],[Фактические]]","v":{"v":0,"d":"0.00 ₽"}}]
[null,"Итог",{"$f":"SUBTOTAL(109,Подарки[Выделенные])","v":{"v":750,"d":"750.00 ₽"}},{"$f":"SUBTOTAL(109,Подарки[Фактические])","v":{"v":820,"d":"820.00 ₽"}},{"$f":"SUBTOTAL(109,Подарки[Разница])","v":{"v":-70,"d":"-70.00 ₽"}}]
["Надпись «Упаковка» находится в ячейке справа, а надпись «Развлечения» — в ячейке I16.","Упаковка",{"$nulls":6},"Развлечения"]
["Введите расходы на Упаковка в таблице, начиная с ячейки справа, и расходы на Развлечения в таблице, начиная с ячейки I17. Дальнейшие инструкции указаны в ячейке A26.","Позиция","Выделенные","Фактические","Разница",{"$nulls":3},"Позиция","Выделенные","Фактические","Разница"]
[null,"Подарочная упаковка",null,null,{"$f":"Упаковка[[#This Row],[Выделенные]]-Упаковка[[#This Row],[Фактические]]","v":{"v":0,"d":"0.00 ₽"}},{"$nulls":3},"Обслуживание вечеринки (бармен, кейтеринговая компания, уборщики и т. д.)",null,null,{"$f":"Развлечения[[#This Row],[Выделенные]]-Развлечения[[#This Row],[Фактические]]","v":{"v":0,"d":"0.00 ₽"}}]
[null,"Ярлыки",null,null,{"$f":"Упаковка[[#This Row],[Выделенные]]-Упаковка[[#This Row],[Фактические]]","v":{"v":0,"d":"0.00 ₽"}},{"$nulls":3},"Оформление",null,null,{"$f":"Развлечения[[#This Row],[Выделенные]]-Развлечения[[#This Row],[Фактические]]","v":{"v":0,"d":"0.00 ₽"}}]
[null,"Расходные материалы (лента, клейкая лента и т. д.)",null,null,{"$f":"Упаковка[[#This Row],[Выделенные]]-Упаковка[[#This Row],[Фактические]]","v":{"v":0,"d":"0.00 ₽"}},{"$nulls":3},"Еда и напитки",null,null,{"$f":"Развлечения[[#This Row],[Выделенные]]-Развлечения[[#This Row],[Фактические]]","v":{"v":0,"d":"0.00 ₽"}}]
[null,"Коробки",null,null,{"$f":"Упаковка[[#This Row],[Выделенные]]-Упаковка[[#This Row],[Фактические]]","v":{"v":0,"d":"0.00 ₽"}},{"$nulls":3},"Одежда",null,null,{"$f":"Развлечения[[#This Row],[Выделенные]]-Развлечения[[#This Row],[Фактические]]","v":{"v":0,"d":"0.00 ₽"}}]
[null,"Почтовые расходы",null,null,{"$f":"Упаковка[[#This Row],[Выделенные]]-Упаковка[[#This Row],[Фактические]]","v":{"v":0,"d":"0.00 ₽"}},{"$nulls":3},"Билеты",null,null,{"$f":"Развлечения[[#This Row],[Выделенные]]-Развлечения[[#This Row],[Фактические]]","v":{"v":0,"d":"0.00 ₽"}}]
[null,"Другое (нажмите клавишу TAB в последнем столбце этой строки, чтобы добавить строку)",null,null,{"$f":"Упаковка[[#This Row],[Выделенные]]-Упаковка[[#This Row],[Фактические]]","v":{"v":0,"d":"0.00 ₽"}},{"$nulls":3},"Ужины вне дома",null,null,{"$f":"Развлечения[[#This Row],[Выделенные]]-Развлечения[[#This Row],[Фактические]]","v":{"v":0,"d":"0.00 ₽"}}]
[null,"Итог",{"$f":"SUBTOTAL(109,Упаковка[Выделенные])","v":{"v":0,"d":"0.00 ₽"}},{"$f":"SUBTOTAL(109,Упаковка[Фактические])","v":{"v":0,"d":"0.00 ₽"}},{"$f":"SUBTOTAL(109,Упаковка[Разница])","v":{"v":0,"d":"0.00 ₽"}},{"$nulls":3},"Другое (нажмите клавишу TAB в последнем столбце этой строки, чтобы добавить строку)",null,null,{"$f":"Развлечения[[#This Row],[Выделенные]]-Развлечения[[#This Row],[Фактические]]","v":{"v":0,"d":"0.00 ₽"}}]
[{"$nulls":8},"Итог",{"$f":"SUBTOTAL(109,Развлечения[Выделенные])","v":{"v":0,"d":"0.00 ₽"}},{"$f":"SUBTOTAL(109,Развлечения[Фактические])","v":{"v":0,"d":"0.00 ₽"}},{"$f":"SUBTOTAL(109,Развлечения[Разница])","v":{"v":0,"d":"0.00 ₽"}}]
["Надпись «Поездки» находится в ячейке справа, а надпись «Прочее» — в ячейке I26.","Поездки",{"$nulls":6},"Прочее"]
["Введите расходы на Поездки в таблице, начиная с ячейки справа, и прочие расходы в таблице, начиная с ячейки I27.","Позиция","Выделенные","Фактические","Разница",{"$nulls":3},"Позиция","Выделенные","Фактические","Разница"]
[null,"Авиабилеты",null,null,{"$f":"Поездки[[#This Row],[Выделенные]]-Поездки[[#This Row],[Фактические]]","v":{"v":0,"d":"0.00 ₽"}},{"$nulls":3},"Праздничные фотографии",null,null,{"$f":"Прочее[[#This Row],[Выделенные]]-Прочее[[#This Row],[Фактические]]","v":{"v":0,"d":"0.00 ₽"}}]
[null,"Жилье",null,null,{"$f":"Поездки[[#This Row],[Выделенные]]-Поездки[[#This Row],[Фактические]]","v":{"v":0,"d":"0.00 ₽"}},{"$nulls":3},"Бензин ",null,null,{"$f":"Прочее[[#This Row],[Выделенные]]-Прочее[[#This Row],[Фактические]]","v":{"v":0,"d":"0.00 ₽"}}]
[null,"Транспорт",null,null,{"$f":"Поездки[[#This Row],[Выделенные]]-Поездки[[#This Row],[Фактические]]","v":{"v":0,"d":"0.00 ₽"}},{"$nulls":3},"Другое (нажмите клавишу TAB в последнем столбце этой строки, чтобы добавить строку)",null,null,{"$f":"Прочее[[#This Row],[Выделенные]]-Прочее[[#This Row],[Фактические]]","v":{"v":0,"d":"0.00 ₽"}}]
[null,"Другое (нажмите клавишу TAB в последнем столбце этой строки, чтобы добавить строку)",null,null,{"$f":"Поездки[[#This Row],[Выделенные]]-Поездки[[#This Row],[Фактические]]","v":{"v":0,"d":"0.00 ₽"}},{"$nulls":3},"Итог",{"$f":"SUBTOTAL(109,Прочее[Выделенные])","v":{"v":0,"d":"0.00 ₽"}},{"$f":"SUBTOTAL(109,Прочее[Фактические])","v":{"v":0,"d":"0.00 ₽"}},{"$f":"SUBTOTAL(109,Прочее[Разница])","v":{"v":0,"d":"0.00 ₽"}}]
[null,"Итог",{"$f":"SUBTOTAL(109,Поездки[Выделенные])","v":{"v":0,"d":"0.00 ₽"}},{"$f":"SUBTOTAL(109,Поездки[Фактические])","v":{"v":0,"d":"0.00 ₽"}},{"$f":"SUBTOTAL(109,Поездки[Разница])","v":{"v":0,"d":"0.00 ₽"}}]